[Event "*** Qualifier 4: Titled Tuesday 3|2 Blitz"]
[Site "Chess.com"]
[Date "2017.04.25"]
[Round "2"]
[White "djano"]
[Black "BogdanDeac"]
[Result "0-1"]
[WhiteElo "2429"]
[BlackElo "2564"]
[TimeControl "180+2"]
[EndTime "13:21:17 PDT"]
[Termination "BogdanDeac won by resignation"]

1. d4 {[%clk 0:03:02]} 1... Nf6 {[%clk 0:03:00]} 2. Bf4 {[%clk 0:03:02.5]} 2...
c5 {[%clk 0:02:58.2]} 3. e3 {[%clk 0:03:00.2]} 3... Qb6 {[%clk 0:02:58.7]} 4.
Nc3 {[%clk 0:03:01.3]} 4... d6 {[%clk 0:02:58.5]} 5. dxc5 {[%clk 0:03:00.1]}
5... Qxc5 {[%clk 0:02:58.7]} 6. Nf3 {[%clk 0:02:58.2]} 6... g6 {[%clk
0:02:56.3]} 7. Be2 {[%clk 0:02:43.1]} 7... Bg7 {[%clk 0:02:55.8]} 8. O-O {[%clk
0:02:44.6]} 8... O-O {[%clk 0:02:56.4]} 9. h3 {[%clk 0:02:35.6]} 9... Nc6 {[%clk
0:02:54.1]} 10. Qd2 {[%clk 0:02:22.2]} 10... Be6 {[%clk 0:02:52.5]} 11. Rfe1
{[%clk 0:02:15.9]} 11... Rfc8 {[%clk 0:02:46.1]} 12. Rac1 {[%clk 0:02:11.8]}
12... Qb4 {[%clk 0:02:40.3]} 13. Rb1 {[%clk 0:02:00.6]} 13... Qa5 {[%clk
0:02:28.5]} 14. a3 {[%clk 0:02:00.2]} 14... a6 {[%clk 0:02:24.7]} 15. e4 {[%clk
0:01:47.1]} 15... b5 {[%clk 0:02:20.7]} 16. e5 {[%clk 0:01:21.3]} 16... dxe5
{[%clk 0:02:08.5]} 17. Nxe5 {[%clk 0:01:21.9]} 17... Nxe5 {[%clk 0:02:09.3]} 18.
Bxe5 {[%clk 0:01:23.8]} 18... b4 {[%clk 0:01:57.6]} 19. Bxf6 {[%clk 0:01:24]}
19... bxc3 {[%clk 0:01:38.8]} 20. Bxc3 {[%clk 0:01:19.3]} 20... Rxc3 {[%clk
0:01:35.6]} 21. bxc3 {[%clk 0:01:21.2]} 21... Bxc3 {[%clk 0:01:35.8]} 22. Qc1
{[%clk 0:01:00.9]} 22... Bxe1 {[%clk 0:01:29.8]} 23. Qxe1 {[%clk 0:01:02.8]}
23... Qxa3 {[%clk 0:01:30.8]} 24. Bf3 {[%clk 0:00:57.4]} 24... Rc8 {[%clk
0:01:24.9]} 25. Qe5 {[%clk 0:00:56.7]} 25... Qc5 {[%clk 0:01:20.9]} 26. Qf4
{[%clk 0:00:24.7]} 26... Qxc2 {[%clk 0:01:15.1]} 27. Ra1 {[%clk 0:00:25.9]}
27... Qc3 {[%clk 0:00:42]} 28. Rxa6 {[%clk 0:00:22.3]} 28... Qe1+ {[%clk
0:00:41.3]} 29. Kh2 {[%clk 0:00:22.1]} 29... Qxf2 {[%clk 0:00:42.3]} 30. Rxe6
{[%clk 0:00:21.7]} 30... fxe6 {[%clk 0:00:41.8]} 31. Qe5 {[%clk 0:00:20]} 31...
Qc5 {[%clk 0:00:39.9]} 32. Qxe6+ {[%clk 0:00:20.2]} 32... Kg7 {[%clk 0:00:41.1]}
33. Bd5 {[%clk 0:00:21.6]} 33... Qd6+ {[%clk 0:00:40.5]} 34. Qxd6 {[%clk
0:00:22.6]} 34... exd6 {[%clk 0:00:41.5]} 35. Kg3 {[%clk 0:00:24.5]} 35... Rc5
{[%clk 0:00:38.1]} 36. Bf3 {[%clk 0:00:24.7]} 36... Re5 {[%clk 0:00:39]} 37. Kf4
{[%clk 0:00:26]} 37... Kf6 {[%clk 0:00:38.2]} 38. h4 {[%clk 0:00:27.4]} 38... h6
{[%clk 0:00:38.2]} 39. g4 {[%clk 0:00:28.4]} 39... g5+ {[%clk 0:00:38.3]} 40.
hxg5+ {[%clk 0:00:30.3]} 40... hxg5+ {[%clk 0:00:40.1]} 41. Kg3 {[%clk
0:00:31.9]} 41... Re3 {[%clk 0:00:41.5]} 42. Kf2 {[%clk 0:00:33]} 42... Rc3
{[%clk 0:00:42.5]} 43. Be4 {[%clk 0:00:33.2]} 43... Ke5 {[%clk 0:00:43.6]} 44.
Bf5 {[%clk 0:00:34.6]} 44... Kf4 {[%clk 0:00:44]} 45. Ke2 {[%clk 0:00:35.8]}
45... d5 {[%clk 0:00:44.9]} 46. Kd2 {[%clk 0:00:37]} 46... d4 {[%clk 0:00:46.4]}
47. Be6 {[%clk 0:00:37.5]} 47... Rg3 {[%clk 0:00:46.1]} 48. Bd7 {[%clk
0:00:37.9]} 48... Rxg4 {[%clk 0:00:46.9]} 0-1

[Event "*** Qualifier 4: Titled Tuesday 3|2 Blitz"]
[Site "Chess.com"]
[Date "2017.04.25"]
[Round "2"]
[White "dhanushbharadwaj"]
[Black "jcgs1030"]
[Result "1/2-1/2"]
[WhiteElo "2452"]
[BlackElo "2269"]
[TimeControl "180+2"]
[EndTime "13:21:23 PDT"]
[Termination "Game drawn by stalemate"]

1. Nf3 {[%clk 0:03:01.9]} 1... Nf6 {[%clk 0:02:59.6]} 2. c4 {[%clk 0:03:02.5]}
2... g6 {[%clk 0:02:58.7]} 3. b4 {[%clk 0:03:03.3]} 3... Bg7 {[%clk 0:02:59.5]}
4. Bb2 {[%clk 0:03:03.8]} 4... O-O {[%clk 0:03:01.4]} 5. g3 {[%clk 0:03:02.2]}
5... c5 {[%clk 0:03:02.5]} 6. b5 {[%clk 0:03:00.1]} 6... a6 {[%clk 0:03:03.7]}
7. Bg2 {[%clk 0:02:58.5]} 7... axb5 {[%clk 0:03:03.8]} 8. cxb5 {[%clk
0:02:58.9]} 8... d5 {[%clk 0:03:01.3]} 9. O-O {[%clk 0:02:58.7]} 9... d4 {[%clk
0:03:01.9]} 10. e3 {[%clk 0:02:55.8]} 10... dxe3 {[%clk 0:02:57.1]} 11. dxe3
{[%clk 0:02:55.6]} 11... Be6 {[%clk 0:02:57.7]} 12. Qxd8 {[%clk 0:02:52.4]}
12... Rxd8 {[%clk 0:02:57.9]} 13. Ne5 {[%clk 0:02:53.7]} 13... Ng4 {[%clk
0:02:50.9]} 14. Bxb7 {[%clk 0:02:09.6]} 14... Ra7 {[%clk 0:02:34.7]} 15. Nc6
{[%clk 0:01:58.3]} 15... Nxc6 {[%clk 0:02:33.6]} 16. Bxg7 {[%clk 0:01:56.6]}
16... Na5 {[%clk 0:02:23.6]} 17. Bf3 {[%clk 0:01:45.6]} 17... Kxg7 {[%clk
0:02:21.7]} 18. Nc3 {[%clk 0:01:47]} 18... Ne5 {[%clk 0:02:19.3]} 19. Be2 {[%clk
0:01:44.9]} 19... Bc4 {[%clk 0:02:18]} 20. Rfd1 {[%clk 0:01:42.5]} 20... Rad7
{[%clk 0:02:16.3]} 21. Rxd7 {[%clk 0:01:39.2]} 21... Rxd7 {[%clk 0:02:18.2]} 22.
Bxc4 {[%clk 0:01:40.9]} 22... Nexc4 {[%clk 0:02:19.9]} 23. a4 {[%clk 0:01:42.5]}
23... f5 {[%clk 0:02:15.3]} 24. Rb1 {[%clk 0:01:40.8]} 24... Nb6 {[%clk
0:02:12.8]} 25. Ne2 {[%clk 0:01:38.1]} 25... Nxa4 {[%clk 0:02:11.9]} 26. b6
{[%clk 0:01:36]} 26... Rb7 {[%clk 0:02:11.7]} 27. Ra1 {[%clk 0:01:30.3]} 27...
Nb3 {[%clk 0:02:03.1]} 28. Rxa4 {[%clk 0:01:28.5]} 28... Rxb6 {[%clk 0:02:04.6]}
29. Nc3 {[%clk 0:01:28]} 29... Rb7 {[%clk 0:01:59.4]} 30. Ra6 {[%clk 0:01:24.5]}
30... Kf7 {[%clk 0:01:57.3]} 31. Rc6 {[%clk 0:01:21.5]} 31... Ke8 {[%clk
0:01:57.7]} 32. Na4 {[%clk 0:01:17.9]} 32... Kd7 {[%clk 0:01:54.4]} 33. Rxc5
{[%clk 0:00:59.2]} 33... Nxc5 {[%clk 0:01:52.5]} 34. Nxc5+ {[%clk 0:00:59.8]}
34... Kc6 {[%clk 0:01:53.3]} 35. Nxb7 {[%clk 0:01:01.3]} 35... Kxb7 {[%clk
0:01:55]} 36. Kg2 {[%clk 0:01:01.1]} 36... e5 {[%clk 0:01:56.4]} 37. Kf3 {[%clk
0:01:00]} 37... Kc6 {[%clk 0:01:54.2]} 38. e4 {[%clk 0:00:55.3]} 38... Kc5
{[%clk 0:01:54.1]} 39. exf5 {[%clk 0:00:55]} 39... gxf5 {[%clk 0:01:56]} 40. Ke3
{[%clk 0:00:55.9]} 40... Kc4 {[%clk 0:01:55.4]} 41. g4 {[%clk 0:00:40]} 41...
fxg4 {[%clk 0:01:50]} 42. Ke4 {[%clk 0:00:40.2]} 42... Kc3 {[%clk 0:01:44.5]}
43. Kxe5 {[%clk 0:00:41]} 43... Kd3 {[%clk 0:01:46.4]} 44. Kf4 {[%clk
0:00:41.6]} 44... Ke2 {[%clk 0:01:47.7]} 45. Kxg4 {[%clk 0:00:41.1]} 45... Kxf2
{[%clk 0:01:48.9]} 46. h4 {[%clk 0:00:32.2]} 46... Ke3 {[%clk 0:01:41]} 47. Kf5
{[%clk 0:00:28.1]} 47... h5 {[%clk 0:01:37.6]} 48. Ke5 {[%clk 0:00:18.5]} 48...
Kf3 {[%clk 0:01:31]} 49. Kf5 {[%clk 0:00:19.7]} 49... Ke3 {[%clk 0:01:31.4]} 50.
Ke5 {[%clk 0:00:20.6]} 50... Kf3 {[%clk 0:01:28.5]} 51. Kf5 {[%clk 0:00:22.2]}
51... Ke3 {[%clk 0:01:22.4]} 52. Kg5 {[%clk 0:00:24.1]} 52... Ke4 {[%clk
0:01:23.3]} 53. Kxh5 {[%clk 0:00:21.1]} 53... Kf5 {[%clk 0:01:25.2]} 54. Kh6
{[%clk 0:00:22.2]} 54... Kf6 {[%clk 0:01:26.9]} 55. Kh5 {[%clk 0:00:23]} 55...
Kg7 {[%clk 0:01:27.4]} 56. Kg5 {[%clk 0:00:24.8]} 56... Kh8 {[%clk 0:01:29.3]}
57. Kg6 {[%clk 0:00:26]} 57... Kg8 {[%clk 0:01:31.2]} 58. Kh6 {[%clk 0:00:27.9]}
58... Kh8 {[%clk 0:01:33]} 59. Kg6 {[%clk 0:00:29.8]} 59... Kg8 {[%clk
0:01:34.7]} 60. Kh6 {[%clk 0:00:31.7]} 60... Kh8 {[%clk 0:01:36.5]} 61. h5
{[%clk 0:00:33.6]} 61... Kg8 {[%clk 0:01:38.1]} 62. Kg6 {[%clk 0:00:35.5]} 62...
Kh8 {[%clk 0:01:39.8]} 63. h6 {[%clk 0:00:37.4]} 63... Kg8 {[%clk 0:01:41.4]}
64. h7+ {[%clk 0:00:38.7]} 64... Kh8 {[%clk 0:01:43.3]} 65. Kh6 {[%clk
0:00:38.2]} 1/2-1/2

[Event "*** Qualifier 4: Titled Tuesday 3|2 Blitz"]
[Site "Chess.com"]
[Date "2017.04.25"]
[Round "2"]
[White "Sanan_Sjugirov"]
[Black "Oneofmyturns"]
[Result "1-0"]
[WhiteElo "2653"]
[BlackElo "2505"]
[TimeControl "180+2"]
[EndTime "13:21:29 PDT"]
[Termination "Sanan_Sjugirov won by resignation"]

1. e4 {[%clk 0:03:02]} 1... Nf6 {[%clk 0:02:57.2]} 2. e5 {[%clk 0:03:02.6]} 2...
Nd5 {[%clk 0:02:58.4]} 3. d4 {[%clk 0:03:03.7]} 3... d6 {[%clk 0:02:59.5]} 4.
Nf3 {[%clk 0:03:04.9]} 4... Bg4 {[%clk 0:03:00.7]} 5. Be2 {[%clk 0:03:05.1]}
5... e6 {[%clk 0:03:02.2]} 6. O-O {[%clk 0:03:04.8]} 6... Be7 {[%clk 0:03:03.4]}
7. h3 {[%clk 0:03:05.3]} 7... Bh5 {[%clk 0:03:04.2]} 8. c4 {[%clk 0:03:04.8]}
8... Nb6 {[%clk 0:03:05.3]} 9. Nc3 {[%clk 0:03:03.3]} 9... O-O {[%clk
0:03:03.7]} 10. exd6 {[%clk 0:03:02]} 10... cxd6 {[%clk 0:03:04.6]} 11. Be3
{[%clk 0:03:00.6]} 11... Nc6 {[%clk 0:03:03.3]} 12. d5 {[%clk 0:02:58]} 12...
exd5 {[%clk 0:03:01.7]} 13. Nxd5 {[%clk 0:02:57.7]} 13... Bxf3 {[%clk
0:02:56.2]} 14. Bxb6 {[%clk 0:02:43.7]} 14... axb6 {[%clk 0:02:38.6]} 15. Bxf3
{[%clk 0:02:43.9]} 15... Bf6 {[%clk 0:02:36.1]} 16. Qd2 {[%clk 0:02:34]} 16...
Be5 {[%clk 0:02:35.3]} 17. g3 {[%clk 0:02:09.5]} 17... Ne7 {[%clk 0:02:14.2]}
18. a3 {[%clk 0:01:59.1]} 18... Nxd5 {[%clk 0:02:09.4]} 19. Bxd5 {[%clk
0:02:01]} 19... Qc7 {[%clk 0:02:09.4]} 20. Rad1 {[%clk 0:01:46.8]} 20... Kh8
{[%clk 0:02:09.1]} 21. f4 {[%clk 0:01:33.3]} 21... Bf6 {[%clk 0:02:03.9]} 22.
Kg2 {[%clk 0:01:34.4]} 22... Rfe8 {[%clk 0:01:52.1]} 23. Rfe1 {[%clk 0:01:30.7]}
23... Rab8 {[%clk 0:01:25.6]} 24. Re2 {[%clk 0:01:05.5]} 24... h6 {[%clk
0:00:52.7]} 25. Rde1 {[%clk 0:01:04]} 25... Rxe2+ {[%clk 0:00:26.1]} 26. Qxe2
{[%clk 0:00:58.4]} 26... Qc5 {[%clk 0:00:27.3]} 27. Bxf7 {[%clk 0:00:52.3]}
27... Qd4 {[%clk 0:00:28.5]} 28. b3 {[%clk 0:00:40]} 28... Rf8 {[%clk
0:00:22.9]} 29. Bd5 {[%clk 0:00:35]} 29... b5 {[%clk 0:00:22.3]} 30. Rd1 {[%clk
0:00:25.4]} 30... Qb2 {[%clk 0:00:17.2]} 31. Qxb2 {[%clk 0:00:25.3]} 31... Bxb2
{[%clk 0:00:19.1]} 32. cxb5 {[%clk 0:00:25.2]} 32... b6 {[%clk 0:00:19.4]} 33.
a4 {[%clk 0:00:25.4]} 33... Ba3 {[%clk 0:00:17.1]} 34. a5 {[%clk 0:00:23.3]}
34... bxa5 {[%clk 0:00:16.3]} 35. b6 {[%clk 0:00:24.7]} 35... Bc5 {[%clk
0:00:17.5]} 36. b7 {[%clk 0:00:26.1]} 36... g6 {[%clk 0:00:18.8]} 37. Be6 {[%clk
0:00:24.5]} 37... Rd8 {[%clk 0:00:12.2]} 38. Bc8 {[%clk 0:00:23.6]} 38... Ba7
{[%clk 0:00:13.3]} 39. Rd5 {[%clk 0:00:24.3]} 1-0

[Event "*** Qualifier 4: Titled Tuesday 3|2 Blitz"]
[Site "Chess.com"]
[Date "2017.04.25"]
[Round "2"]
[White "DryCounty"]
[Black "TheLancer"]
[Result "1-0"]
[WhiteElo "2482"]
[BlackElo "2385"]
[TimeControl "180+2"]
[EndTime "13:21:38 PDT"]
[Termination "DryCounty won by resignation"]

1. Nf3 {[%clk 0:03:02]} 1... c5 {[%clk 0:02:58.1]} 2. c4 {[%clk 0:03:01.8]} 2...
g6 {[%clk 0:02:59.5]} 3. d4 {[%clk 0:03:01.7]} 3... cxd4 {[%clk 0:02:59.5]} 4.
Nxd4 {[%clk 0:03:02.7]} 4... Bg7 {[%clk 0:03:00.2]} 5. e4 {[%clk 0:03:03.1]}
5... Nc6 {[%clk 0:02:57.8]} 6. Be3 {[%clk 0:03:03]} 6... Nf6 {[%clk 0:02:52.6]}
7. Nc3 {[%clk 0:03:02.9]} 7... d6 {[%clk 0:02:53.2]} 8. f3 {[%clk 0:03:00.7]}
8... Nxd4 {[%clk 0:02:52.4]} 9. Bxd4 {[%clk 0:03:01.3]} 9... O-O {[%clk
0:02:52.1]} 10. Be2 {[%clk 0:03:01.8]} 10... a5 {[%clk 0:02:47.1]} 11. Na4
{[%clk 0:02:53.1]} 11... Nd7 {[%clk 0:02:45]} 12. Be3 {[%clk 0:02:42.1]} 12...
Qc7 {[%clk 0:01:57.9]} 13. O-O {[%clk 0:02:38.3]} 13... Nc5 {[%clk 0:01:58.1]}
14. Nc3 {[%clk 0:02:39.3]} 14... Bd7 {[%clk 0:01:53.9]} 15. Nd5 {[%clk
0:02:39.3]} 15... Qd8 {[%clk 0:01:55.3]} 16. Rb1 {[%clk 0:02:36.8]} 16... Bc6
{[%clk 0:01:50.6]} 17. b3 {[%clk 0:02:34.5]} 17... e6 {[%clk 0:01:46.9]} 18. Nf4
{[%clk 0:02:33.2]} 18... Be5 {[%clk 0:01:46.3]} 19. Qd2 {[%clk 0:02:30]} 19...
Qe7 {[%clk 0:01:31.8]} 20. Nd3 {[%clk 0:02:22.4]} 20... Bg7 {[%clk 0:01:06.2]}
21. Rfd1 {[%clk 0:02:20.5]} 21... Rfd8 {[%clk 0:01:04.7]} 22. Bg5 {[%clk
0:02:02.1]} 22... Bf6 {[%clk 0:00:42.7]} 23. Bf4 {[%clk 0:02:00.6]} 23... Bd4+
{[%clk 0:00:42.4]} 24. Kh1 {[%clk 0:01:59.3]} 24... e5 {[%clk 0:00:43.7]} 25.
Bg5 {[%clk 0:01:51.4]} 25... f6 {[%clk 0:00:30.3]} 26. Be3 {[%clk 0:01:51]}
26... Ne6 {[%clk 0:00:31.7]} 27. Ne1 {[%clk 0:01:44.6]} 27... Bxe3 {[%clk
0:00:30.5]} 28. Qxe3 {[%clk 0:01:45.1]} 28... Nd4 {[%clk 0:00:29.9]} 29. Bd3
{[%clk 0:01:46.1]} 29... f5 {[%clk 0:00:29.1]} 30. Nc2 {[%clk 0:01:45.6]} 30...
Nxc2 {[%clk 0:00:25.1]} 31. Bxc2 {[%clk 0:01:46.1]} 31... f4 {[%clk 0:00:25.5]}
32. Qb6 {[%clk 0:01:45.4]} 32... Ra6 {[%clk 0:00:25.2]} 33. Qf2 {[%clk
0:01:42.3]} 33... Be8 {[%clk 0:00:20.5]} 34. c5 {[%clk 0:01:36.8]} 34... dxc5
{[%clk 0:00:16.1]} 35. Bd3 {[%clk 0:01:29.4]} 35... Rad6 {[%clk 0:00:14.7]} 36.
Bc4+ {[%clk 0:01:29.4]} 36... Kg7 {[%clk 0:00:13.4]} 37. Bd5 {[%clk 0:01:27.8]}
37... b6 {[%clk 0:00:12.9]} 38. Rb2 {[%clk 0:01:01.2]} 38... Bf7 {[%clk
0:00:11.8]} 39. Rbd2 {[%clk 0:01:01.8]} 39... Bxd5 {[%clk 0:00:09.8]} 40. exd5
{[%clk 0:01:02.9]} 40... e4 {[%clk 0:00:10.1]} 41. fxe4 {[%clk 0:01:01.9]} 41...
Qxe4 {[%clk 0:00:12]} 42. Re1 {[%clk 0:00:59.4]} 42... Qf5 {[%clk 0:00:07.2]}
43. Re7+ {[%clk 0:00:55.7]} 43... Kg8 {[%clk 0:00:06.8]} 44. h3 {[%clk
0:00:49.4]} 44... Rxd5 {[%clk 0:00:07.6]} 45. Rde2 {[%clk 0:00:49.9]} 45... Rd1+
{[%clk 0:00:08]} 46. Kh2 {[%clk 0:00:50.5]} 46... f3 {[%clk 0:00:09.7]} 47. Qxf3
{[%clk 0:00:44]} 47... Qf4+ {[%clk 0:00:09.6]} 48. Qxf4 {[%clk 0:00:44.8]} 1-0

[Event "*** Qualifier 4: Titled Tuesday 3|2 Blitz"]
[Site "Chess.com"]
[Date "2017.04.25"]
[Round "2"]
[White "MorpheusPro"]
[Black "Enzy63"]
[Result "0-1"]
[WhiteElo "2026"]
[BlackElo "2035"]
[TimeControl "180+2"]
[EndTime "13:21:38 PDT"]
[Termination "Enzy63 won by resignation"]

1. g3 {[%clk 0:03:00]} 1... Nf6 {[%clk 0:02:59.4]} 2. Bg2 {[%clk 0:03:01.9]}
2... g6 {[%clk 0:02:57.2]} 3. e3 {[%clk 0:03:03.8]} 3... Bg7 {[%clk 0:02:57.7]}
4. Ne2 {[%clk 0:03:05.7]} 4... O-O {[%clk 0:02:59.2]} 5. O-O {[%clk 0:03:07.6]}
5... d5 {[%clk 0:03:00.1]} 6. d4 {[%clk 0:03:08.8]} 6... c5 {[%clk 0:03:00.4]}
7. Nd2 {[%clk 0:03:07.6]} 7... b6 {[%clk 0:02:46.7]} 8. b3 {[%clk 0:03:04.9]}
8... Bb7 {[%clk 0:02:47.5]} 9. Bb2 {[%clk 0:03:05.9]} 9... Nbd7 {[%clk
0:02:48.1]} 10. Nf3 {[%clk 0:03:05.8]} 10... Ne4 {[%clk 0:02:47.7]} 11. Nf4
{[%clk 0:02:52.6]} 11... e6 {[%clk 0:02:48.3]} 12. Re1 {[%clk 0:02:49.3]} 12...
Qc7 {[%clk 0:02:48.1]} 13. Rb1 {[%clk 0:02:48.8]} 13... Rad8 {[%clk 0:02:48]}
14. c3 {[%clk 0:02:46.6]} 14... e5 {[%clk 0:02:47.6]} 15. Nd3 {[%clk 0:02:30.4]}
15... Nxg3 {[%clk 0:02:10.8]} 16. hxg3 {[%clk 0:02:13.5]} 16... e4 {[%clk
0:02:11.5]} 17. Nfe5 {[%clk 0:02:03]} 17... exd3 {[%clk 0:02:09.5]} 18. Nxd3
{[%clk 0:02:03.9]} 18... Nf6 {[%clk 0:01:56.3]} 19. Ne5 {[%clk 0:02:02.2]} 19...
Rfe8 {[%clk 0:01:56.6]} 20. Qc2 {[%clk 0:01:42.7]} 20... Bc8 {[%clk 0:01:55]}
21. Qd2 {[%clk 0:01:37.1]} 21... Bf5 {[%clk 0:01:50.8]} 22. Rbc1 {[%clk
0:01:36.1]} 22... h5 {[%clk 0:01:42.1]} 23. Ba1 {[%clk 0:01:13.3]} 23... Be4
{[%clk 0:01:33.4]} 24. Qe2 {[%clk 0:01:04]} 24... Bxg2 {[%clk 0:01:26.2]} 25.
Kxg2 {[%clk 0:01:04.8]} 25... Nd7 {[%clk 0:01:27.7]} 26. Nf3 {[%clk 0:01:01.7]}
26... Nf6 {[%clk 0:01:18]} 27. Rh1 {[%clk 0:00:57.9]} 27... Ng4 {[%clk 0:01:10]}
28. Qd3 {[%clk 0:00:48]} 28... Re7 {[%clk 0:01:01.2]} 29. dxc5 {[%clk 0:00:37]}
29... bxc5 {[%clk 0:00:54.3]} 30. c4 {[%clk 0:00:26.3]} 30... d4 {[%clk
0:00:51.6]} 31. exd4 {[%clk 0:00:24.6]} 31... cxd4 {[%clk 0:00:52.8]} 32. Rhd1
{[%clk 0:00:14.3]} 32... Qb7 {[%clk 0:00:46.4]} 33. Kg1 {[%clk 0:00:13.8]} 33...
h4 {[%clk 0:00:33.3]} 34. Nxh4 {[%clk 0:00:11]} 34... Ne5 {[%clk 0:00:33.3]} 35.
Qf1 {[%clk 0:00:09]} 35... g5 {[%clk 0:00:34.2]} 36. Ng2 {[%clk 0:00:07]} 36...
Nf3+ {[%clk 0:00:34.7]} 37. Kh1 {[%clk 0:00:07.6]} 37... Re6 {[%clk 0:00:35.4]}
38. Ne1 {[%clk 0:00:06.9]} 38... Rh6+ {[%clk 0:00:34.4]} 39. Kg2 {[%clk
0:00:06.3]} 39... Nxe1+ {[%clk 0:00:35]} 0-1

[Event "*** Qualifier 4: Titled Tuesday 3|2 Blitz"]
[Site "Chess.com"]
[Date "2017.04.25"]
[Round "2"]
[White "GMBenjaminBok"]
[Black "ruvat"]
[Result "1-0"]
[WhiteElo "2630"]
[BlackElo "2245"]
[TimeControl "180+2"]
[EndTime "13:21:39 PDT"]
[Termination "GMBenjaminBok won by resignation"]

1. e4 {[%clk 0:03:02]} 1... d6 {[%clk 0:03:01.1]} 2. d4 {[%clk 0:03:02.2]} 2...
Nf6 {[%clk 0:03:02.2]} 3. Nc3 {[%clk 0:03:03.8]} 3... g6 {[%clk 0:03:03.4]} 4.
Nf3 {[%clk 0:03:02.6]} 4... Bg7 {[%clk 0:03:04.4]} 5. Be2 {[%clk 0:03:04.3]}
5... O-O {[%clk 0:03:05.3]} 6. O-O {[%clk 0:03:05.9]} 6... c6 {[%clk 0:03:06.5]}
7. a4 {[%clk 0:03:06.7]} 7... Qc7 {[%clk 0:03:07.7]} 8. Be3 {[%clk 0:03:06.5]}
8... Nbd7 {[%clk 0:03:08.5]} 9. h3 {[%clk 0:03:05.3]} 9... b6 {[%clk 0:03:08]}
10. Nd2 {[%clk 0:03:05.9]} 10... Bb7 {[%clk 0:03:08.5]} 11. f4 {[%clk
0:03:06.5]} 11... e6 {[%clk 0:02:57.1]} 12. e5 {[%clk 0:03:06.8]} 12... Nd5
{[%clk 0:02:54.8]} 13. Nxd5 {[%clk 0:03:07.3]} 13... cxd5 {[%clk 0:02:51.1]} 14.
Bd3 {[%clk 0:03:01.1]} 14... a5 {[%clk 0:02:45.9]} 15. Qg4 {[%clk 0:02:54.5]}
15... Ba6 {[%clk 0:02:44.3]} 16. Bxa6 {[%clk 0:02:55.3]} 16... Rxa6 {[%clk
0:02:44.9]} 17. c3 {[%clk 0:02:57]} 17... Raa8 {[%clk 0:02:34.7]} 18. Nf3 {[%clk
0:02:57.7]} 18... Rab8 {[%clk 0:02:29.6]} 19. Rf2 {[%clk 0:02:51.6]} 19... b5
{[%clk 0:02:30.3]} 20. axb5 {[%clk 0:02:51.9]} 20... Rxb5 {[%clk 0:02:31.7]} 21.
Re1 {[%clk 0:02:47.5]} 21... Rfb8 {[%clk 0:02:27.1]} 22. Ree2 {[%clk 0:02:48.2]}
22... a4 {[%clk 0:02:27.7]} 23. Qh4 {[%clk 0:02:34.3]} 23... Qb6 {[%clk
0:02:22.1]} 24. Qe7 {[%clk 0:02:11]} 24... Bf8 {[%clk 0:02:04.3]} 25. Qh4 {[%clk
0:01:50]} 25... Qd8 {[%clk 0:02:05]} 26. Qg4 {[%clk 0:01:40]} 26... Nb6 {[%clk
0:02:02.1]} 27. Ng5 {[%clk 0:01:33.4]} 27... Qd7 {[%clk 0:01:46.6]} 28. h4
{[%clk 0:01:26.3]} 28... Nc4 {[%clk 0:01:41.2]} 29. Bc1 {[%clk 0:01:26.9]} 29...
a3 {[%clk 0:01:39.1]} 30. bxa3 {[%clk 0:01:27.3]} 30... Rb1 {[%clk 0:01:39.9]}
31. Rf1 {[%clk 0:01:28.3]} 31... h5 {[%clk 0:01:32.3]} 32. Qf3 {[%clk
0:01:25.1]} 32... Ra1 {[%clk 0:01:14.9]} 33. g4 {[%clk 0:01:24.4]} 33... hxg4
{[%clk 0:01:14.1]} 34. Qxg4 {[%clk 0:01:23.7]} 34... Rbb1 {[%clk 0:01:14]} 35.
Ree1 {[%clk 0:01:23.9]} 35... Ne3 {[%clk 0:00:20.8]} 36. Rxe3 {[%clk 0:01:20.2]}
36... Rxc1 {[%clk 0:00:21.3]} 37. Rxc1 {[%clk 0:00:21.5]} 37... Rxc1+ {[%clk
0:00:23.2]} 38. Kh2 {[%clk 0:00:20]} 38... dxe5 {[%clk 0:00:19.1]} 39. fxe5
{[%clk 0:00:20.1]} 39... Qa4 {[%clk 0:00:16.5]} 40. Qf3 {[%clk 0:00:18.1]} 40...
Qc2+ {[%clk 0:00:15.3]} 41. Re2 {[%clk 0:00:19]} 41... Qd1 {[%clk 0:00:13.5]}
42. Qxf7+ {[%clk 0:00:19]} 1-0